bitfinex/quotes_SOLUSD_20250306
["timestamp","ask_amount","ask_price","bid_price","bid_amount"]
[1741235335370,6.0459,148.86,148.85,0.033]
[1741235336971,20.0,148.83,148.78,2.0]
[1741235337170,20.0,148.82,148.77,2.0]
[1741235337670,20.0,148.82,148.78,2.14216157]
[1741235338978,5.3759,148.81,148.8,0.14216157]
[1741235339164,5.3759,148.81,148.79,0.14216157]
[1741235342075,5.3759,148.81,148.78,0.17516157]
[1741235342661,18.8158,148.81,148.78,0.033]
[1741235345366,81.22648471,148.8,148.7,2.033]
[1741235345662,62.07920706,148.81,148.74,2.0]
[1741235345663,80.8,148.79,148.74,2.0]
[1741235346283,80.8,148.79,148.75,0.14216157]
[1741235346604,18.8196,148.78,148.75,0.14216157]
[1741235346786,18.8196,148.78,148.74,2.0]
[1741235346960,18.8196,148.78,148.75,0.14216157]
[1741235347781,20.0,148.76,148.75,0.14216157]
[1741235347960,5.377,148.78,148.75,2.14216157]
[1741235348156,5.377,148.78,148.77,0.14216157]
[1741235348579,5.3767,148.79,148.77,0.14216157]
[1741235349165,18.8184,148.79,148.75,0.14216157]
[1741235349681,18.8184,148.79,148.77,0.14216157]
[1741235350072,20.0,148.75,148.7,0.033]
[1741235350271,20.0,148.74,148.7,0.033]
[1741235350472,5.3792,148.72,148.7,0.033]
[1741235352578,18.825,148.74,148.7,0.033]
[1741235354106,18.825,148.74,148.69,0.033]
[1741235354274,80.8,148.73,148.69,0.033]
[1741235355377,20.0,148.7,148.69,0.033]
[1741235355577,20.0,148.69,148.63,18.61699366]
[1741235355779,20.0,148.69,148.62,16.99939366]
[1741235355972,106.1806,148.68,148.59,16.99939366]
[1741235356162,106.1806,148.68,148.6,0.14216157]
[1741235356690,119.6323,148.68,148.59,16.99939366]
[1741235357269,106.1806,148.68,148.61,16.99939366]
[1741235357478,106.1806,148.68,148.63,0.14216157]
[1741235357995,106.1806,148.68,148.62,0.14216157]
[1741235359700,119.6323,148.68,148.6,16.99939366]
[1741235359888,80.8,148.67,148.59,81.3]
[1741235360196,80.8,148.67,148.6,0.14216157]
[1741235361076,0.42648471,148.65,148.53,6.7326]
[1741235361276,18.64964886,148.63,148.54,16.99939366]
[1741235361800,18.8399,148.62,148.55,0.17516157]
[1741235362090,99.6399,148.62,148.55,0.17516157]
[1741235362899,20.0,148.59,148.55,0.17516157]
[1741235363097,20.0,148.59,148.55,17.17455523]
[1741235363778,5.3843,148.58,148.55,0.17516157]
[1741235364099,5.3843,148.58,148.55,0.14216157]
[1741235365899,5.3843,148.58,148.55,0.17216157]
[1741235370004,5.3843,148.58,148.55,0.03]
[1741235370706,18.845,148.58,148.55,0.03]
[1741235371709,13.4607,148.58,148.55,0.03]
[1741235373187,5.3835,148.6,148.55,0.03]
[1741235373810,86.1835,148.6,148.55,0.03]
[1741235374415,86.1835,148.6,148.55,0.17216157]
[1741235374611,86.1835,148.6,148.56,0.14216157]
[1741235376306,5.3835,148.6,148.56,0.14216157]
[1741235377219,20.0,148.59,148.56,0.14216157]
[1741235377521,20.0,148.59,148.55,0.03]
[1741235379329,18.8754,148.6,148.55,0.03]
[1741235380814,18.64964886,148.58,148.48,98.29939366]
[1741235381023,80.8,148.57,148.48,98.29939366]
[1741235381233,80.8,148.57,148.49,0.14216157]
[1741235381521,20.0,148.53,148.47,18.80419366]
[1741235381834,20.0,148.52,148.48,0.14216157]
[1741235382199,20.0,148.52,148.47,18.80419366]
[1741235382520,20.0,148.52,148.48,0.14216157]
[1741235383096,20.0,148.51,148.48,312.0]
[1741235383303,20.0,148.51,148.45,16.99939366]
[1741235383517,5.3872,148.5,148.46,0.14216157]
[1741235384722,20.0,148.51,148.47,17.14155523]
[1741235385022,20.0,148.51,148.49,0.14216157]
[1741235385218,25.387,148.51,148.49,0.14216157]
[1741235385529,25.387,148.51,148.48,0.14216157]
[1741235386025,25.387,148.51,148.46,0.14216157]
[1741235386326,25.387,148.51,148.46,329.14155523]
[1741235387823,5.3864,148.52,148.48,0.14216157]
[1741235389212,5.3864,148.52,148.47,0.14216157]
[1741235389722,20.0,148.5,148.47,0.14216157]
[1741235389932,20.0,148.5,148.46,0.14216157]
[1741235390110,20.0,148.49,148.47,0.03]
[1741235391737,25.3877,148.49,148.47,0.03]
[1741235395621,20.0,148.49,148.47,0.03]
[1741235395831,25.3876,148.49,148.45,329.14155523]
[1741235396130,25.3876,148.49,148.45,312.14216157]
[1741235397122,25.3876,148.49,148.45,329.14155523]
[1741235398412,5.3869,148.51,148.45,335.87775523]
[1741235398638,5.3869,148.51,148.47,16.99939366]
[1741235398838,5.3869,148.51,148.48,0.14216157]
[1741235399745,5.3869,148.51,148.46,17.14155523]
[1741235400238,5.3869,148.51,148.46,0.14216157]
[1741235401051,18.854,148.51,148.46,0.14216157]
[1741235401429,18.854,148.51,148.45,0.14216157]
[1741235402137,20.0,148.48,148.43,0.14216157]
[1741235402339,5.3882,148.47,148.43,17.14155523]
[1741235402845,20.0,148.48,148.45,0.14216157]
[1741235404341,20.0,148.48,148.45,312.14216157]
[1741235405747,80.8,148.54,148.48,0.14216157]
[1741235405952,80.8,148.54,148.48,17.14155523]
[1741235406338,5.3862,148.53,148.47,17.14155523]
[1741235407557,18.8514,148.53,148.47,0.14216157]
[1741235407847,18.8514,148.53,148.46,0.14216157]
[1741235408053,80.8,148.52,148.43,16.99939366]
[1741235408244,80.8,148.52,148.44,0.14216157]
[1741235408441,18.8539,148.51,148.44,0.14216157]
[1741235408840,18.8539,148.51,148.44,312.0]
[1741235409633,20.0,148.48,148.45,0.14216157]
[1741235409834,20.0,148.48,148.45,17.14155523]
[1741235410641,80.8,148.54,148.45,98.44155523]
[1741235410961,5.3861,148.53,148.48,17.14155523]
[1741235412039,5.3858,148.54,148.5,0.14216157]
[1741235412237,5.4185,148.55,148.52,0.14216157]
[1741235412647,20.0,148.53,148.52,0.14216157]
[1741235413828,20.0,148.53,148.52,312.14216157]
[1741235414066,5.3857,148.54,148.52,312.14216157]
[1741235414957,0.033,148.55,148.52,312.14216157]
[1741235415157,5.4184,148.55,148.52,312.14216157]
[1741235415961,0.033,148.55,148.52,393.44216157]
[1741235416269,0.033,148.55,148.54,17.56803994]
[1741235418463,0.033,148.55,148.54,0.56864628]
[1741235418758,0.033,148.55,148.54,17.56803994]
[1741235419343,0.033,148.55,148.54,329.56803994]
[1741235419953,0.033,148.55,148.54,336.30013994]
[1741235420657,0.033,148.55,148.54,563.4497888]
[1741235420954,0.033,148.55,148.54,569.8196888]
[1741235432673,0.033,148.55,148.54,563.73335015]
[1741235437067,0.033,148.55,148.54,531.41305501]
[1741235437272,0.033,148.55,148.54,393.3]
[1741235437570,0.033,148.55,148.54,81.3]
[1741235437755,0.033,148.55,148.54,81.44216157]
[1741235438477,0.033,148.55,148.51,81.3]
[1741235439159,0.033,148.55,148.52,0.14216157]
[1741235440448,0.033,148.55,148.52,312.14216157]
[1741235441257,0.033,148.55,148.54,0.14216157]
[1741235442866,0.033,148.55,148.54,11.05521658]
[1741235443565,0.033,148.55,148.54,0.14216157]
[1741235444358,0.033,148.55,148.54,312.14216157]
[1741235446781,0.033,148.55,148.53,0.14216157]
[1741235450371,0.033,148.55,148.53,0.28432314]
[1741235450578,0.033,148.55,148.53,11.19737815]
[1741235450980,0.033,148.55,148.54,11.19737815]
[1741235451274,0.033,148.55,148.54,99.51380129]
[1741235451475,0.033,148.55,148.54,247.23575015]
[1741235452563,0.033,148.55,148.54,253.37474772]
[1741235453572,0.033,148.55,148.54,565.37474772]
[1741235457892,0.033,148.6,148.59,0.14216157]
[1741235458183,0.033,148.6,148.59,17.47853729]
[1741235460595,0.033,148.6,148.59,232.85059886]
[1741235461198,0.033,148.6,148.59,580.5523003]
[1741235461399,0.033,148.63,148.62,0.14216157]
[1741235461718,0.033,148.63,148.62,250.97034772]
[1741235462660,0.033,148.69,148.64,0.14216157]
[1741235462866,0.033,148.69,148.68,17.62069886]
[1741235463088,0.033,148.69,148.68,81.44216157]
[1741235463288,0.033,148.69,148.63,81.3]
[1741235463517,0.033,148.69,148.63,98.35205258]
[1741235463807,0.033,148.69,148.63,81.3]
[1741235463808,20.0,148.68,148.63,81.3]
[1741235464008,20.0,148.67,148.6,98.35205258]
[1741235464215,20.0,148.67,148.6,81.3]
[1741235464515,20.0,148.67,148.61,312.14216157]
[1741235465009,5.3814,148.66,148.61,312.14216157]
[1741235465794,6.6166,148.65,148.61,312.0]
[1741235466195,6.6166,148.65,148.62,0.14216157]
[1741235467103,11.9985,148.65,148.62,0.14216157]
[1741235468925,99.44964886,148.64,148.54,81.3]
[1741235469098,18.8386,148.63,148.54,98.35205258]
[1741235469415,20.0,148.6,148.55,0.28432314]
[1741235469593,20.0,148.6,148.55,81.58432314]
[1741235469795,5.3824,148.63,148.57,17.33637572]
[1741235469996,86.1822,148.64,148.58,0.14216157]
[1741235470496,6.6166,148.65,148.6,0.14216157]
[1741235471208,6.6166,148.65,148.6,6.87146157]
[1741235471519,6.6166,148.65,148.6,0.14216157]
[1741235471892,6.6166,148.65,148.63,0.14216157]
[1741235472094,11.9984,148.65,148.63,0.14216157]
[1741235472594,20.0,148.62,148.58,0.14216157]
[1741235473417,6.6166,148.65,148.58,105.36667572]
[1741235473617,11.9984,148.65,148.6,0.14216157]
[1741235474416,11.9984,148.65,148.59,0.28432314]
[1741235475327,11.9984,148.65,148.62,0.14216157]
[1741235475534,25.4528,148.65,148.62,0.14216157]
[1741235476816,20.0,148.63,148.62,0.14216157]
[1741235477314,25.3824,148.63,148.62,0.14216157]
[1741235478215,20.0,148.63,148.62,0.14216157]
[1741235478409,20.55874886,148.69,148.61,312.0]
[1741235478410,107.85324886,148.69,148.61,17.19421415]
[1741235478715,87.3275,148.69,148.63,17.19421415]
[1741235478921,5.3806,148.68,148.63,17.19421415]
[1741235479331,11.9078,148.69,148.63,17.19421415]
[1741235479500,0.033,148.69,148.65,17.19421415]
[1741235479700,0.033,148.69,148.67,17.19421415]
[1741235479914,0.033,148.69,148.68,17.62069886]
[1741235480116,0.033,148.69,148.68,98.92069886]
[1741235480821,0.033,148.69,148.68,105.64649886]
[1741235481415,0.033,148.69,148.68,410.92069886]
[1741235481810,0.033,148.69,148.68,417.64649886]
[1741235482239,0.033,148.69,148.68,410.92069886]
[1741235483419,0.033,148.69,148.68,410.49421415]
[1741235483627,0.033,148.69,148.68,393.44216157]
[1741235485433,0.033,148.69,148.62,208.5]
[1741235485609,0.033,148.69,148.63,0.28432314]
[1741235486631,0.033,148.69,148.62,81.33]
[1741235486812,6.6206,148.69,148.62,81.33]
[1741235487019,18.8323,148.68,148.62,81.33]
[1741235487216,18.8323,148.68,148.63,0.14216157]
[1741235488303,18.8323,148.68,148.63,312.14216157]
[1741235488516,99.44964886,148.67,148.63,312.0]
[1741235488719,20.0,148.64,148.62,0.03]
[1741235488902,25.3824,148.63,148.62,0.03]
[1741235489306,38.8386,148.63,148.55,81.3]
[1741235489838,38.8386,148.63,148.56,0.14216157]
[1741235490512,38.8386,148.63,148.58,0.14216157]
[1741235490513,25.3824,148.63,148.58,0.14216157]
[1741235490703,20.0,148.61,148.58,0.14216157]
[1741235490911,20.0,148.61,148.58,0.28432314]
[1741235491108,20.0,148.61,148.58,17.33637572]
[1741235491619,20.0,148.61,148.6,312.14216157]
[1741235492829,5.3817,148.66,148.61,0.14216157]
[1741235493127,92.8009,148.69,148.62,0.14216157]
[1741235493348,87.4206,148.69,148.64,0.14216157]
[1741235493715,0.033,148.69,148.66,0.14216157]
[1741235493916,0.033,148.69,148.66,98.63637572]
[1741235494523,0.033,148.69,148.68,0.14216157]
[1741235494818,0.033,148.69,148.68,17.62069886]
[1741235495144,0.033,148.69,148.68,24.34649886]
[1741235495316,87.3378,148.69,148.6,1.8439]
[1741235495520,6.5378,148.69,148.6,100.19595258]
[1741235495717,0.033,148.69,148.66,0.14216157]
[1741235495919,0.033,148.69,148.68,0.14216157]
[1741235496538,0.033,148.69,148.66,0.14216157]
[1741235497523,20.033,148.69,148.64,81.3]
[1741235497842,20.033,148.69,148.65,0.14216157]
[1741235498214,20.033,148.69,148.64,81.3]
[1741235498419,20.0,148.68,148.62,0.03]
[1741235498630,20.0,148.68,148.62,0.17216157]
[1741235499241,5.381,148.67,148.62,0.17216157]
[1741235499616,5.381,148.67,148.62,0.03]
[1741235500040,0.033,148.69,148.63,0.14216157]
[1741235500222,5.4135,148.69,148.63,0.14216157]
[1741235500424,5.4135,148.69,148.66,0.14216157]
[1741235501042,5.4135,148.69,148.63,0.14216157]
[1741235501424,13.4838,148.69,148.63,0.14216157]
[1741235502032,99.44964886,148.68,148.62,0.03]
[1741235502228,6.2622,148.67,148.62,0.03]
[1741235502525,99.44964886,148.66,148.57,81.3]
[1741235502727,18.64964886,148.64,148.54,241.95194258]
[1741235502951,80.8,148.63,148.54,81.3]
[1741235503122,99.44964886,148.62,148.53,0.21324235]
[1741235503323,18.8412,148.61,148.54,0.14216157]
[1741235503527,20.0,148.57,148.54,0.14216157]
[1741235503940,20.0,148.57,148.56,0.14216157]
[1741235504145,80.8,148.6,148.56,0.14216157]
[1741235504340,5.3832,148.61,148.56,0.14216157]
[1741235505234,20.0,148.6,148.56,0.14216157]
[1741235505540,20.0,148.59,148.56,0.14216157]
[1741235505739,20.0,148.59,148.57,0.14216157]
[1741235505946,5.3825,148.63,148.58,0.14216157]
[1741235506141,20.0,148.6,148.58,0.14216157]
[1741235507426,5.3824,148.63,148.58,0.14216157]
[1741235507624,80.8,148.62,148.56,0.14216157]
[1741235508754,80.8,148.62,148.56,312.14216157]
[1741235509851,86.183,148.62,148.56,312.14216157]
[1741235510645,86.216,148.62,148.56,312.14216157]
[1741235510844,20.0,148.58,148.51,88.0334]
[1741235511030,20.0,148.57,148.52,0.14216157]
[1741235511344,20.0,148.57,148.52,0.28432314]
[1741235512359,25.3846,148.57,148.52,0.28432314]
[1741235512747,25.3846,148.57,148.52,0.14216157]
[1741235513337,20.0,148.57,148.52,115.42700415]
[1741235513848,20.0,148.57,148.54,0.14216157]
[1741235514346,5.3839,148.59,148.54,0.14216157]
[1741235514347,6.4252,148.6,148.54,34.12610415]
[1741235514657,80.833,148.62,148.56,0.14216157]
[1741235515051,20.0,148.59,148.55,0.14216157]
[1741235515422,20.0,148.59,148.57,0.14216157]
[1741235516152,20.0,148.59,148.56,0.14216157]
[1741235516658,20.0,148.59,148.55,6.87376157]
[1741235516825,20.0,148.59,148.55,27.39410415]
[1741235517028,20.0,148.59,148.55,0.14216157]
[1741235517344,20.0,148.59,148.58,312.14216157]
[1741235519826,25.3839,148.59,148.58,312.14216157]
[1741235521066,25.3839,148.59,148.58,0.14216157]
[1741235523556,20.0,148.59,148.58,0.14216157]
[1741235523966,20.0,148.59,148.58,312.14216157]
[1741235524860,86.2159,148.62,148.59,0.14216157]
[1741235525157,0.033,148.62,148.59,0.14216157]
[1741235526336,0.033,148.62,148.6,27.82058886]
[1741235526657,0.033,148.62,148.6,0.14216157]
[1741235526958,20.0,148.61,148.6,0.14216157]
[1741235527254,20.0,148.61,148.56,89.3115]
[1741235527557,20.0,148.61,148.57,0.14216157]
[1741235527859,20.0,148.59,148.56,0.03]
[1741235528657,6.6136,148.59,148.56,0.03]
[1741235528865,20.0,148.57,148.56,0.03]
[1741235529040,6.6136,148.59,148.56,0.03]
[1741235529041,80.8,148.58,148.56,0.03]
[1741235530349,86.1844,148.58,148.56,0.03]
[1741235531460,20.0,148.55,148.52,0.14216157]
[1741235532865,25.3854,148.55,148.52,0.14216157]
[1741235533248,80.8,148.58,148.52,0.14216157]
[1741235533453,86.1844,148.58,148.52,0.14216157]
[1741235533765,20.0,148.55,148.52,0.14216157]
[1741235533964,80.8,148.61,148.55,0.14216157]
[1741235534168,80.8,148.61,148.57,0.14216157]
[1741235534361,80.8,148.61,148.57,312.14216157]
[1741235534666,0.033,148.62,148.57,312.14216157]
[1741235534667,20.0,148.58,148.57,312.14216157]
[1741235535657,0.033,148.62,148.57,312.14216157]
[1741235535970,0.033,148.62,148.57,329.20832603]
[1741235536345,0.033,148.62,148.57,312.14216157]
[1741235540381,20.0,148.6,148.57,312.14216157]
[1741235540549,20.0,148.59,148.57,312.14216157]
[1741235542642,20.0,148.58,148.57,312.14216157]
[1741235543059,0.02928195,148.61,148.57,312.14216157]
[1741235543262,20.0,148.59,148.57,312.14216157]
[1741235543695,0.02928195,148.61,148.57,312.14216157]
[1741235543843,0.02928195,148.61,148.57,318.87266157]
[1741235544173,0.02928195,148.61,148.57,335.93882603]
[1741235545343,0.02928195,148.61,148.6,17.20832603]
[1741235545550,0.02928195,148.61,148.6,17.63481074]
[1741235547858,0.02928195,148.61,148.6,0.14216157]
[1741235548058,0.02928195,148.61,148.58,81.3]
[1741235548255,18.67893081,148.61,148.58,312.0]
[1741235548461,20.0,148.59,148.58,312.14216157]
[1741235548648,20.0,148.59,148.58,0.14216157]
[1741235550881,18.67893081,148.61,148.57,23.79666446]
[1741235551078,18.67893081,148.61,148.58,0.14216157]
[1741235551685,0.02928195,148.61,148.58,312.14216157]
[1741235552052,0.02928195,148.61,148.58,318.87246157]
[1741235552287,0.02928195,148.61,148.58,17.20832603]
[1741235552455,0.02928195,148.61,148.58,23.93852603]
[1741235552983,0.02928195,148.61,148.6,0.14216157]
[1741235554169,0.02928195,148.61,148.6,23.93772603]
[1741235554882,0.02928195,148.61,148.6,105.66421074]
[1741235555259,0.02928195,148.61,148.6,419.49741074]
[1741235556360,0.02928195,148.61,148.6,395.70184628]
[1741235557255,0.02928195,148.61,148.6,395.27536157]
[1741235557673,0.033,148.62,148.61,0.14216157]
[1741235558363,0.033,148.62,148.61,6.87116157]
[1741235558689,0.033,148.62,148.61,6.84187962]
[1741235558989,0.033,148.62,148.61,0.14216157]
[1741235559373,20.0,148.6,148.57,81.3]
[1741235559893,20.0,148.6,148.58,0.14216157]
[1741235560261,20.0,148.6,148.58,17.20832603]
[1741235560476,0.033,148.62,148.6,0.14216157]
[1741235560980,20.0,148.61,148.59,0.14216157]
[1741235561983,0.033,148.62,148.59,0.14216157]
[1741235562279,0.033,148.62,148.6,312.0]
[1741235562486,20.033,148.62,148.61,0.14216157]
[1741235564682,5.4158,148.62,148.61,0.14216157]
[1741235564880,0.033,148.62,148.61,0.14216157]
[1741235567990,0.033,148.62,148.57,81.3]
[1741235568165,20.0,148.6,148.56,0.17216157]
[1741235569269,25.3836,148.6,148.56,0.17216157]
[1741235569469,20.0,148.6,148.56,0.17216157]
[1741235569974,20.0,148.59,148.56,6.90336157]
[1741235570172,20.0,148.6,148.57,17.3504876]
[1741235570376,0.033,148.62,148.59,0.14216157]
[1741235570672,20.0,148.61,148.59,0.14216157]
[1741235570990,20.0,148.61,148.6,312.14216157]
[1741235572289,44.03284886,148.61,148.6,0.14216157]
[1741235572666,25.3832,148.61,148.57,81.3]
[1741235572865,25.3832,148.61,148.58,0.14216157]
[1741235573064,5.4159,148.62,148.58,0.14216157]
[1741235573474,0.033,148.62,148.59,0.14216157]
[1741235573883,0.033,148.62,148.59,17.20832603]
[1741235575077,0.033,148.62,148.59,0.42648471]
[1741235575268,0.033,148.62,148.61,312.14216157]
[1741235580283,0.033,148.62,148.61,312.0]
[1741235580499,20.0,148.59,148.56,81.33]
[1741235580695,20.0,148.59,148.57,0.14216157]
[1741235581198,18.68264886,148.62,148.57,0.14216157]
[1741235581407,5.3832,148.61,148.57,0.14216157]
[1741235581699,5.4159,148.62,148.57,0.14216157]
[1741235582087,5.4159,148.62,148.56,98.39616446]
[1741235582404,5.4159,148.62,148.57,0.14216157]
[1741235583495,18.68264886,148.62,148.6,0.14216157]
[1741235584309,18.68264886,148.62,148.57,0.14216157]
[1741235585807,20.0,148.59,148.57,0.14216157]
[1741235586608,20.0,148.58,148.56,0.03]
[1741235586786,38.64964886,148.57,148.56,0.03]
[1741235587184,80.8,148.6,148.56,312.17216157]
[1741235587586,80.8,148.6,148.56,335.96952603]
[1741235587791,20.0,148.58,148.56,23.96952603]
[1741235588403,5.4159,148.62,148.56,105.26952603]
[1741235588908,20.0,148.6,148.57,24.36551074]
[1741235589106,0.033,148.62,148.59,0.14216157]
[1741235589407,20.0,148.6,148.59,0.14216157]
[1741235589611,18.68264886,148.62,148.58,0.14216157]
[1741235589612,20.0,148.59,148.58,0.14216157]
[1741235589993,38.64964886,148.59,148.56,0.03]
[1741235590688,38.64964886,148.59,148.57,0.14216157]
[1741235591089,5.3843,148.58,148.57,0.14216157]
[1741235591485,24.03394886,148.58,148.56,0.03]
[1741235591706,18.64964886,148.57,148.56,0.03]
[1741235592306,5.3843,148.58,148.56,0.03]
[1741235593304,38.64964886,148.57,148.56,0.03]
[1741235595095,44.03424886,148.57,148.56,0.03]
[1741235599720,44.03424886,148.57,148.53,312.14216157]
[1741235599896,38.64964886,148.57,148.53,312.14216157]
[1741235600320,38.64964886,148.57,148.53,0.14216157]
[1741235600499,18.64964886,148.57,148.53,0.14216157]
[1741235600696,18.64964886,148.57,148.53,6.87466157]
[1741235600898,18.64964886,148.57,148.53,23.94082603]
[1741235602127,10.4019061,148.59,148.57,0.14216157]
[1741235602412,15.7851061,148.61,148.57,0.14216157]
[1741235602620,15.7851061,148.61,148.56,0.14216157]
[1741235603218,15.7851061,148.61,148.59,0.14216157]
[1741235603426,10.4019061,148.61,148.59,0.14216157]
[1741235603796,20.0,148.58,148.57,0.14216157]
[1741235604309,20.0,148.58,148.56,0.14216157]
[1741235606928,25.3843,148.58,148.57,312.14216157]
[1741235607111,25.3843,148.58,148.57,0.14216157]
[1741235607731,44.03394886,148.58,148.54,83.1576]
[1741235607937,44.03394886,148.58,148.5,107.01146446]
[1741235608138,124.83394886,148.58,148.51,0.14216157]
[1741235608702,18.64964886,148.57,148.5,83.2115]
[1741235609039,18.64964886,148.57,148.51,0.14216157]
[1741235609040,99.44964886,148.57,148.51,0.14216157]
[1741235609733,5.385,148.56,148.51,0.14216157]
[1741235610112,5.385,148.56,148.53,0.14216157]
[1741235610418,0.28432314,148.54,148.52,312.0]
[1741235610609,0.28432314,148.54,148.47,0.03]
[1741235610814,18.64964886,148.53,148.47,0.03]
[1741235611126,20.0,148.5,148.47,0.03]
[1741235613536,18.64964886,148.49,148.47,312.03]
[1741235613732,20.0,148.49,148.47,312.03]
[1741235614026,20.0,148.49,148.48,0.14216157]
[1741235614234,25.3875,148.49,148.48,0.14216157]
[1741235615425,25.3875,148.49,148.45,0.03]
[1741235615426,18.64964886,148.47,148.45,0.03]
[1741235616236,5.3886,148.46,148.45,0.03]
[1741235616607,80.8,148.48,148.45,0.03]
[1741235616802,5.3876,148.49,148.45,0.03]
[1741235617017,5.3876,148.49,148.47,0.03]
[1741235617207,24.03724886,148.49,148.47,0.03]
[1741235617515,18.64964886,148.48,148.47,0.03]
[1741235618132,24.03754886,148.48,148.47,0.03]
[1741235621726,38.64964886,148.46,148.45,0.03]
[1741235622847,44.03824886,148.46,148.45,0.03]
[1741235625331,47.43800341,148.46,148.45,0.03]
[1741235626333,44.03824886,148.46,148.45,0.03]
[1741235628312,5.3872,148.5,148.45,0.03]
[1741235628823,18.64964886,148.49,148.46,0.14216157]
[1741235629425,24.03684886,148.5,148.46,0.14216157]
[1741235630937,80.8,148.49,148.46,0.14216157]
[1741235631244,20.0,148.47,148.46,0.14216157]
[1741235631739,80.8,148.51,148.46,25.86362603]
[1741235632431,79.78717096,148.51,148.46,25.86362603]
[1741235632837,79.78717096,148.55,148.48,17.06616446]
[1741235633139,18.64964886,148.54,148.49,0.14216157]
[1741235633529,20.0,148.51,148.5,6.734]
[1741235633719,20.0,148.51,148.5,6.87616157]
[1741235634524,79.78717096,148.55,148.51,0.14216157]
[1741235634734,0.033,148.56,148.53,0.14216157]
[1741235635332,20.0,148.54,148.51,0.14216157]
[1741235635530,20.0,148.53,148.51,0.14216157]
[1741235636330,25.3859,148.54,148.5,0.14216157]
[1741235636925,25.3859,148.54,148.47,17.3504876]
[1741235637847,18.64964886,148.53,148.46,25.34236446]
[1741235638048,18.64964886,148.53,148.46,1.9195]
[1741235638254,18.64964886,148.53,148.47,0.14216157]
[1741235638547,79.78717096,148.55,148.47,17.3504876]
[1741235638548,85.17267096,148.55,148.47,17.3504876]
[1741235638757,20.0,148.52,148.47,17.3504876]
[1741235638943,20.0,148.52,148.47,0.14216157]
[1741235639448,20.0,148.48,148.47,0.14216157]
[1741235639828,18.64964886,148.51,148.47,0.14216157]
[1741235640251,24.03654886,148.51,148.47,0.14216157]
[1741235641644,24.03654886,148.51,148.47,312.14216157]
[1741235642249,38.64964886,148.48,148.47,312.0]
[1741235642451,38.64964886,148.48,148.45,0.03]
[1741235643228,18.64964886,148.47,148.45,0.03]
[1741235644047,24.03824886,148.46,148.45,0.03]
[1741235644338,103.82541982,148.46,148.45,0.03]
[1741235646930,104.10974296,148.46,148.45,0.03]
[1741235647836,38.64964886,148.42,148.41,0.03]
[1741235648034,118.43681982,148.42,148.41,0.03]
[1741235649751,118.72114296,148.42,148.41,0.03]
[1741235650071,124.11124296,148.42,148.41,0.03]
[1741235651863,130.0678568,148.42,148.41,0.03]
[1741235652947,50.28068584,148.42,148.41,0.03]
[1741235653942,53.70737016,148.42,148.41,0.03]
[1741235654141,44.03974886,148.42,148.41,0.03]
[1741235654673,38.64964886,148.42,148.41,0.03]
[1741235655372,18.64964886,148.42,148.41,0.03]
[1741235655671,13.4695,148.49,148.41,0.03]
[1741235655853,5.3875,148.49,148.41,0.17216157]
[1741235656039,5.3875,148.49,148.41,19.14552603]
[1741235656242,5.87206945,148.5,148.41,19.14552603]
[1741235656439,5.3872,148.5,148.41,19.14552603]
[1741235656776,18.64964886,148.49,148.43,0.14216157]
[1741235657152,0.033,148.51,148.43,17.3504876]
[1741235657352,0.033,148.51,148.43,0.14216157]
[1741235657551,18.68264886,148.51,148.43,0.14216157]
[1741235657843,18.68264886,148.51,148.46,0.14216157]
[1741235658140,24.06954886,148.51,148.46,0.14216157]
[1741235658340,24.06954886,148.51,148.44,0.14216157]
[1741235658854,20.0,148.48,148.43,0.14216157]
[1741235659245,20.0,148.47,148.43,0.14216157]